bitfinex/quotes_ETHUSD_20250426
["timestamp","ask_amount","ask_price","bid_price","bid_amount"]
[1745670343216,5.55795992,1792.5,1792.2,11.15903128]
[1745670343421,5.55795992,1792.5,1792.3,5.57929292]
[1745670343922,6.06078814,1792.5,1792.1,5.62989164]
[1745670344246,5.54082822,1792.5,1792.1,5.62989164]
[1745670344452,5.038,1792.5,1792.4,5.5791118]
[1745670345756,5.8175,1792.5,1792.4,5.5791118]
[1745670345916,5.038,1792.5,1792.4,5.5791118]
[1745670350358,5.039,1792.8,1792.5,0.8098]
[1745670350560,5.039,1792.8,1792.7,6.38797816]
[1745670354832,5.033,1793.0,1792.7,6.38797816]
[1745670355146,5.033,1793.0,1792.9,5.57755591]
[1745670355351,5.033,1793.0,1792.9,7.5028982]
[1745670359981,21.777,1793.3,1793.2,5.57662279]
[1745670360283,5.033,1793.3,1793.2,6.37702279]
[1745670360473,8.8393,1793.6,1793.5,5.57568999]
[1745670360790,6.35936456,1793.6,1793.5,5.57568999]
[1745670361277,5.55306456,1793.6,1793.5,5.57568999]
[1745670361689,5.033,1793.6,1793.5,5.57568999]
[1745670362359,5.033,1793.6,1793.5,6.69084772]
[1745670365747,5.033,1793.6,1793.5,7.48074772]
[1745670365948,16.746,1794.0,1793.9,5.57444673]
[1745670366176,5.032,1794.0,1793.9,5.57444673]
[1745670366375,0.8086,1794.4,1794.3,5.57320403]
[1745670366559,17.24582822,1794.7,1794.3,5.57320403]
[1745670366560,5.031,1794.5,1794.4,5.57289344]
[1745670377138,5.031,1794.5,1794.1,6.36368355]
[1745670377139,6.34422822,1794.5,1794.1,0.7899]
[1745670377335,6.34422822,1794.5,1794.4,5.57289344]
[1745670377498,5.031,1794.5,1794.4,5.57289344]
[1745670381237,5.031,1794.5,1794.4,6.6875013]
[1745670382543,5.031,1794.5,1794.3,5.57305596]
[1745670383370,5.031,1794.5,1794.4,5.57289344]
[1745670383915,5.031,1794.5,1794.3,5.57305596]
[1745670384530,5.031,1794.5,1794.4,5.57289344]
[1745670385657,0.7697,1794.4,1794.2,5.57336169]
[1745670385911,0.7697,1794.4,1794.2,6.76997032]
[1745670386497,0.7697,1794.4,1794.3,5.57320403]
[1745670387946,5.031,1794.5,1794.3,5.57320403]
[1745670388181,5.031,1794.5,1794.4,6.39449344]
[1745670389386,0.403169,1796.8,1796.5,0.8216]
[1745670389610,0.403169,1796.8,1796.7,5.76575944]
[1745670389887,0.71475289,1796.8,1796.7,5.76575944]
[1745670390503,0.403169,1796.8,1796.7,5.76575944]
[1745670390682,0.403169,1796.8,1796.7,6.28043864]
[1745670390997,5.462,1797.2,1796.8,5.76544968]
[1745670391549,0.8087,1797.4,1796.8,6.28012888]
[1745670391752,0.8087,1797.4,1797.2,5.56418275]
[1745670393170,0.8087,1797.4,1797.3,5.5639014]
[1745670393779,0.8087,1797.4,1797.2,5.90993868]
[1745670393994,0.8087,1797.4,1797.3,5.5639014]
[1745670394291,0.8087,1797.4,1797.2,0.34588656]
[1745670394493,0.8087,1797.4,1797.2,0.14588656]
[1745670394683,3.8087,1797.4,1797.2,0.14588656]
[1745670395864,0.55,1797.3,1797.2,0.14588656]
[1745670397196,0.55,1797.3,1796.9,5.41102342]
[1745670399066,0.55,1797.3,1796.8,5.76530395]
[1745670399266,0.55,1797.3,1796.9,0.2]
[1745670399496,0.55,1797.3,1796.8,5.76530395]
[1745670399997,0.55,1797.3,1796.9,0.2]
[1745670400492,0.55,1797.3,1796.9,5.76503465]
[1745670401295,0.55,1797.3,1796.9,0.2]
[1745670401504,0.55,1797.3,1796.9,5.76504578]
[1745670401704,3.8087,1797.4,1797.0,5.56459043]
[1745670401902,0.13882655,1797.2,1797.0,5.56459043]
[1745670402077,3.8087,1797.4,1797.0,5.56459043]
[1745670402276,0.13829945,1797.1,1797.0,5.56459043]
[1745670402484,3.8087,1797.4,1797.2,5.56399252]
[1745670402781,3.8087,1797.4,1797.2,5.56394518]
[1745670403389,3.8087,1797.4,1797.3,5.5639014]
[1745670403690,0.8087,1797.4,1797.3,5.5639014]
[1745670403902,5.462,1797.5,1797.3,5.5639014]
[1745670404599,5.462,1797.5,1797.2,5.5640299]
[1745670404807,5.462,1797.5,1797.2,5.56397941]
[1745670405611,5.462,1797.5,1797.0,0.2]
[1745670405779,5.462,1797.5,1797.0,5.76468768]
[1745670406110,7.93549982,1797.5,1796.9,5.56501019]
[1745670406277,7.93549982,1797.5,1796.9,5.76501019]
[1745670406479,7.93549982,1797.5,1796.9,5.56501019]
[1745670406908,7.93549982,1797.5,1796.9,5.76501019]
[1745670407117,7.93549982,1797.5,1797.0,5.564794]
[1745670407408,7.93549982,1797.5,1797.1,0.2]
[1745670407579,5.462,1797.5,1797.1,0.2]
[1745670407777,5.462,1797.5,1797.1,5.76434549]
[1745670408008,5.462,1797.5,1797.2,5.56418693]
[1745670408594,5.462,1797.5,1797.4,5.56359185]
[1745670409814,5.462,1797.5,1797.2,0.2]
[1745670410015,5.462,1797.5,1797.1,5.7643909]
[1745670410187,5.462,1797.5,1797.1,5.76437155]
[1745670410517,5.462,1797.5,1797.2,0.2]
[1745670410713,5.462,1797.5,1797.2,5.76418145]
[1745670411312,5.462,1797.5,1797.2,0.2]
[1745670411616,5.462,1797.5,1797.1,5.76434525]
[1745670412116,5.462,1797.5,1797.2,0.2]
[1745670413022,5.462,1797.5,1797.2,5.76407522]
[1745670413207,5.462,1797.5,1797.3,5.56381413]
[1745670413596,5.462,1797.5,1797.2,5.7640204]
[1745670414625,5.462,1797.5,1797.3,5.56383067]
[1745670414919,5.462,1797.5,1797.3,0.2]
[1745670415089,5.462,1797.5,1797.4,5.56359185]
[1745670415422,5.462,1797.5,1797.4,5.76359185]
[1745670416214,5.462,1797.5,1797.4,0.2]
[1745670416588,5.60293467,1797.5,1797.4,5.76359185]
[1745670416988,0.14093467,1797.5,1797.4,5.76359185]
[1745670417419,0.14128594,1797.5,1797.4,5.76359185]
[1745670417609,8.456,1797.7,1797.4,6.27669893]
[1745670417916,8.456,1797.7,1797.4,6.27650585]
[1745670418087,0.14128594,1797.6,1797.4,6.27664821]
[1745670418287,0.14128594,1797.6,1797.4,0.71310708]
[1745670418620,0.14128594,1797.6,1797.5,0.51310708]
[1745670419018,0.14128594,1797.6,1797.3,0.2]
[1745670419220,8.456,1797.7,1797.3,0.2]
[1745670419386,0.14128594,1797.6,1797.3,0.2]
[1745670419591,8.456,1797.7,1797.3,0.2]
[1745670419793,0.14128594,1797.6,1797.4,0.51765337]
[1745670420014,0.50084427,1797.6,1797.4,0.51765337]
[1745670420290,0.92968602,1797.5,1797.0,0.2]
[1745670420484,0.92968602,1797.5,1796.9,5.76497184]
[1745670420692,0.92968602,1797.5,1797.1,0.51775745]
[1745670420995,0.50084427,1797.4,1797.1,0.51775745]
[1745670421185,0.1407005,1797.3,1797.2,0.51775745]
[1745670421392,0.9291005,1797.3,1797.2,0.51775745]
[1745670421893,1.4791005,1797.3,1797.2,0.51775745]
[1745670422091,1.4791005,1797.3,1796.8,0.36781649]
[1745670422285,3.0,1797.1,1796.8,0.16781649]
[1745670422519,0.14017347,1797.0,1796.8,0.36781649]
[1745670429323,0.14017347,1797.0,1796.8,0.16781649]
[1745670429511,0.14017347,1797.0,1796.8,5.93314312]
[1745670429825,0.14017347,1797.0,1796.8,0.36781649]
[1745670430954,0.8098,1796.9,1796.8,0.16781649]
[1745670431151,0.8098,1796.9,1796.5,0.2]
[1745670431452,0.14017347,1796.8,1796.5,0.2]
[1745670431637,0.8098,1796.9,1796.5,0.2]
[1745670431813,0.13724489,1796.8,1796.4,5.76654614]
[1745670432011,5.421,1796.7,1796.5,0.2]
[1745670432248,0.13478473,1796.6,1796.4,6.42292075]
[1745670432451,5.421,1796.7,1796.4,6.42292075]
[1745670432754,0.13478473,1796.6,1796.4,0.85637461]
[1745670432936,0.13478473,1796.6,1796.3,0.9972]
[1745670433122,0.13478473,1796.6,1796.3,0.2]
[1745670433320,0.13478473,1796.6,1796.4,0.2]
[1745670434323,0.13478473,1796.6,1796.4,5.76663064]
[1745670434960,0.13478473,1796.6,1796.4,0.2]
[1745670435764,0.13478473,1796.6,1796.3,0.2]
[1745670436750,0.8098,1796.5,1796.0,0.2]
[1745670436960,0.8098,1796.5,1796.2,0.2]
[1745670437168,0.13343701,1796.4,1796.2,0.2]
[1745670437332,0.13343701,1796.4,1796.1,0.2]
[1745670438026,0.13343701,1796.4,1796.0,0.2]
[1745670438247,0.13343701,1796.4,1796.1,0.2]
[1745670439504,0.13343701,1796.4,1796.2,0.2]
[1745670439674,0.13343701,1796.4,1796.2,5.7671127]
[1745670439991,3.0,1796.6,1796.2,5.7671127]
[1745670440195,0.13173722,1796.3,1796.2,5.7671127]
[1745670440671,3.0,1796.6,1796.2,5.7671127]
[1745670440864,0.13173722,1796.5,1796.2,0.2]
[1745670441894,0.13173722,1796.5,1796.2,5.76729349]
[1745670442227,0.13173722,1796.5,1796.3,5.7668072]
[1745670442364,0.13173722,1796.5,1796.3,0.2]
[1745670442565,6.2294,1796.7,1796.3,0.2]
[1745670442773,0.13173722,1796.4,1796.3,0.2]
[1745670442990,6.2294,1796.7,1796.3,0.2]
[1745670443192,0.13173722,1796.4,1796.3,0.2]
[1745670443399,6.2294,1796.7,1796.3,0.2]
[1745670443577,0.13173722,1796.4,1796.3,0.2]
[1745670443783,6.2294,1796.7,1796.3,0.2]
[1745670443963,0.13173722,1796.4,1796.3,0.2]
[1745670444168,6.2294,1796.7,1796.3,0.2]
[1745670444364,0.13173722,1796.4,1796.3,0.2]
[1745670444569,6.2294,1796.7,1796.3,0.2]
[1745670444770,0.13173722,1796.4,1796.3,0.2]
[1745670444967,6.2294,1796.7,1796.3,0.2]
[1745670445171,0.12939314,1796.4,1796.3,0.2]
[1745670445682,6.2294,1796.7,1796.3,0.2]
[1745670446027,0.12939314,1796.6,1796.3,0.2]
[1745670446230,0.12939314,1796.6,1796.3,5.76698963]
[1745670446821,0.12939314,1796.6,1796.3,0.2]
[1745670447446,3.12939314,1796.6,1796.3,0.2]
[1745670447609,3.63023741,1796.6,1796.1,0.2]
[1745670447798,0.7874,1796.5,1796.1,0.2]
[1745670448232,0.12939314,1796.4,1796.1,0.2]
[1745670450432,0.12939314,1796.4,1796.1,0.77679013]
[1745670450622,3.0,1796.6,1796.2,5.56718337]
[1745670450809,0.12939314,1796.5,1796.2,5.76718337]
[1745670451931,0.12939314,1796.5,1796.2,0.2]
[1745670452311,0.12939314,1796.5,1796.1,5.76745117]
[1745670452626,0.12939314,1796.5,1796.1,0.2]
[1745670452837,0.12939314,1796.5,1796.4,5.76668893]
[1745670453049,0.829,1797.0,1796.4,5.76668893]
[1745670453231,0.11784635,1796.9,1796.4,5.76668893]
[1745670453410,0.61869062,1796.9,1796.4,0.2]
[1745670454300,0.11784635,1796.9,1796.4,0.2]
[1745670454500,0.61869062,1796.9,1796.4,5.76649519]
[1745670454823,0.61869062,1796.9,1796.5,5.76626115]
[1745670455029,0.61869062,1796.9,1796.5,5.76621907]
[1745670455197,0.61869062,1796.9,1796.5,5.76623612]
[1745670456333,0.61869062,1796.9,1796.5,5.56623612]
[1745670456520,0.61869062,1796.9,1796.5,0.2]
[1745670456713,0.61869062,1796.9,1796.5,5.76620554]
[1745670457532,0.50084427,1796.7,1796.4,0.2]
[1745670457847,0.50084427,1796.5,1796.1,1.0287]
[1745670458033,3.50084427,1796.5,1796.0,0.2]
[1745670458335,0.11984119,1796.4,1796.0,0.2]
[1745670458524,0.11984119,1796.4,1796.0,5.76792143]
[1745670458929,0.11984119,1796.4,1796.2,0.2]
[1745670459445,0.11984119,1796.4,1796.1,5.7676077]
[1745670459630,0.11984119,1796.4,1796.2,0.2]
[1745670462670,0.11984119,1796.4,1796.3,5.56699883]
[1745670462878,0.11984119,1796.4,1796.3,5.76699883]
[1745670463041,6.0413,1796.6,1796.3,5.76699883]
[1745670463371,0.1180224,1796.5,1796.3,5.76699883]
[1745670463772,0.1180224,1796.5,1796.3,0.2]
[1745670463975,0.1180224,1796.5,1796.3,5.76699262]
[1745670464781,0.1180224,1796.5,1796.3,0.2]
[1745670465387,3.61886667,1796.5,1796.1,0.2]
[1745670465540,3.61886667,1796.5,1796.0,6.53922399]
[1745670466448,1.31514427,1796.3,1796.0,0.2]
[1745670466780,5.3773745,1796.2,1795.9,0.2]
[1745670467891,3.50084427,1796.1,1795.8,0.2]
[1745670468068,1.37792765,1796.0,1795.5,0.7675]
[1745670468239,0.50084427,1795.8,1795.5,0.7675]
[1745670468600,0.1058069,1795.7,1795.6,5.76916907]
[1745670468802,0.1058069,1795.7,1795.6,6.97976005]
[1745670469097,0.10416164,1795.7,1795.6,6.97976005]
[1745670469277,3.76,1796.0,1795.6,6.97960108]
[1745670469461,0.10416164,1795.9,1795.6,6.97963635]
[1745670470285,0.10416164,1795.9,1795.6,1.41059098]
[1745670470601,0.10416164,1795.9,1795.6,6.9797396]
[1745670471102,0.10416164,1795.9,1795.7,5.56870761]
[1745670471466,0.10416164,1795.9,1795.7,5.5686134]
[1745670471974,0.10416164,1795.9,1795.8,0.2]
[1745670472378,5.75984427,1796.1,1795.8,0.2]
[1745670472574,0.10416164,1795.9,1795.8,0.2]
[1745670472801,5.75984427,1796.1,1795.8,0.2]
[1745670472986,0.10416164,1795.9,1795.8,0.2]
[1745670473601,5.75984427,1796.1,1795.8,0.2]
[1745670473789,0.10416164,1795.9,1795.8,0.2]
[1745670473986,5.75984427,1796.1,1795.8,0.2]
[1745670474171,0.10416164,1795.9,1795.8,0.2]
[1745670474372,5.75984427,1796.1,1795.8,0.2]
[1745670474573,0.10416164,1795.9,1795.8,0.2]
[1745670474771,5.75984427,1796.1,1795.8,0.2]
[1745670474972,0.10416164,1795.9,1795.8,0.2]
[1745670475481,5.75984427,1796.1,1795.8,0.2]
[1745670475683,0.10416164,1796.0,1795.8,0.2]
[1745670479198,0.10416164,1796.0,1795.7,0.2]
[1745670479398,0.10416164,1796.0,1795.8,0.2]
[1745670481528,0.10416164,1796.0,1795.8,5.76842237]
[1745670481743,0.10416164,1796.0,1795.9,0.2]
[1745670482026,0.55,1796.3,1796.0,5.76762339]
[1745670482027,5.194,1796.3,1796.0,5.76762339]
[1745670482722,5.194,1796.3,1796.1,5.56756507]
[1745670482927,5.194,1796.3,1796.1,0.2]
[1745670483725,5.194,1796.3,1796.1,5.76760027]
[1745670484306,5.194,1796.3,1796.1,0.2]
[1745670485185,5.9454,1796.3,1795.9,0.2]
[1745670485385,0.50084427,1796.2,1795.8,0.2]
[1745670485619,0.50084427,1796.2,1796.0,0.2]
[1745670485834,3.50084427,1796.2,1795.7,0.2]
[1745670486030,3.50084427,1796.2,1795.8,0.2]
[1745670486423,0.7514,1795.9,1795.7,0.2]
[1745670486596,5.194,1795.8,1795.6,0.2]
[1745670489734,5.194,1795.8,1795.5,0.2]
[1745670489900,5.194,1795.8,1795.7,0.2]
[1745670490432,5.194,1795.8,1795.7,5.76885894]
[1745670491414,5.194,1795.8,1795.7,6.90265904]
[1745670491612,5.194,1795.8,1795.7,7.70305904]
[1745670492435,5.194,1796.0,1795.8,5.56850852]
[1745670492635,5.194,1796.0,1795.9,5.76823876]
[1745670492842,5.194,1796.0,1795.9,0.2]
[1745670493142,5.194,1796.0,1795.9,5.76823876]
[1745670493301,17.5274,1796.6,1796.1,0.2]
[1745670493500,5.69484427,1796.5,1796.1,0.2]
[1745670493700,3.0,1796.4,1796.1,0.2]
[1745670495542,3.0,1796.4,1796.1,5.76757193]
[1745670496112,3.0,1796.4,1796.2,5.56712577]
[1745670496308,5.194,1796.3,1796.1,5.76753149]
[1745670496643,5.194,1796.3,1796.2,0.2]
[1745670497811,5.194,1796.3,1796.2,5.76730876]
[1745670498325,5.194,1796.3,1796.2,0.2]
[1745670500850,5.194,1796.3,1796.0,0.2]
[1745670501550,5.9926,1796.3,1796.0,0.2]
[1745670501732,5.9926,1796.3,1796.1,0.2]
[1745670506674,5.194,1796.3,1796.1,0.2]
[1745670508784,5.194,1796.3,1795.9,0.2]
[1745670508950,0.8155,1796.1,1795.8,0.2]
[1745670509281,0.50084427,1796.0,1795.7,0.2]
[1745670509458,5.193,1795.9,1795.7,0.2]
[1745670510089,0.50084427,1795.8,1795.7,0.2]
[1745670511283,5.193,1795.9,1795.7,0.2]
[1745670518713,0.28185867,1796.9,1796.3,0.795]
[1745670518999,0.7866,1797.6,1797.1,5.5643771]
[1745670519000,0.50084427,1797.2,1797.1,5.5643771]
[1745670519202,0.50084427,1797.3,1797.0,0.2]
[1745670519369,0.50084427,1797.3,1796.8,11.33053824]
[1745670519370,0.7866,1797.2,1796.8,11.33053824]
[1745670519573,3.7866,1797.4,1797.0,0.2]
[1745670519768,4.28744427,1797.4,1797.0,0.2]
[1745670520097,5.345,1797.3,1797.0,5.76467787]
[1745670520281,3.0,1797.2,1797.0,5.76467787]
[1745670520484,3.0,1797.2,1797.1,5.56452061]
[1745670520664,3.0,1797.2,1797.0,5.76465607]
[1745670520991,5.345,1797.3,1797.0,6.89762639]
[1745670521218,0.7866,1797.4,1797.0,6.89762639]
[1745670521428,5.345,1797.2,1797.0,6.89762639]
[1745670522184,5.345,1797.2,1797.0,1.33297032]
[1745670522403,5.345,1797.2,1797.0,6.89762962]
[1745670522851,5.345,1797.2,1797.1,5.56452061]
[1745670523149,5.345,1797.2,1797.1,0.88976296]
[1745670523291,0.41529664,1797.7,1797.1,0.88976296]
[1745670523292,0.05,1798.9,1797.3,0.55]
[1745670523493,1.722311,1799.9,1799.0,0.8176]
[1745670523730,0.05,1799.9,1799.7,0.2]
[1745670523907,5.709,1799.9,1799.5,6.46263765]
[1745670524223,5.709,1799.9,1799.6,0.2]
[1745670524591,5.659,1799.8,1799.5,5.75709547]
[1745670524787,5.659,1799.8,1799.3,5.55760908]
[1745670524788,5.659,1799.8,1799.6,0.2]
[1745670525188,0.05,1799.9,1799.7,6.37402441]
[1745670525454,0.05,1799.9,1799.8,5.7561729]
[1745670526316,0.05,1799.9,1799.8,0.2]
[1745670526737,0.05,1799.9,1799.7,0.2]
[1745670527193,6.08744628,1799.8,1799.7,0.2]
[1745670528100,6.08744628,1799.8,1799.6,0.2]
[1745670528627,6.08744628,1799.8,1799.7,0.2]
[1745670530050,6.08744628,1799.8,1799.6,0.2]
[1745670530212,6.08744628,1799.8,1799.5,0.2]
[1745670530742,5.46629134,1799.7,1799.3,0.2]
[1745670530943,0.14045115,1799.6,1799.2,0.2]
[1745670531143,3.0,1799.7,1799.4,0.2]
[1745670531348,0.13886985,1799.6,1799.4,0.2]
[1745670531545,3.0,1799.7,1799.4,0.2]
[1745670531736,0.13886985,1799.6,1799.4,0.2]
[1745670531910,5.97,1799.8,1799.4,0.2]
[1745670532119,6.09198102,1799.7,1799.6,0.2]
[1745670537637,8.55827236,1799.7,1799.3,0.2]
[1745670538142,0.7638,1799.6,1799.2,0.2]
[1745670538336,0.11574129,1799.5,1799.2,0.2]
[1745670538571,5.46629134,1799.4,1799.0,0.41838167]
[1745670538775,2.46629134,1799.2,1799.0,0.21838167]
[1745670539066,6.07974129,1799.1,1798.9,0.2]
[1745670539561,6.07974129,1799.1,1798.8,0.2]
[1745670539869,6.07974129,1799.1,1798.7,0.2]
[1745670540165,3.0,1799.0,1798.7,0.2]
[1745670540377,3.0,1799.0,1798.8,0.2]
[1745670540529,0.11574129,1798.9,1798.8,0.2]
[1745670540730,0.11574129,1798.9,1798.7,0.2]
[1745670540964,0.11574129,1798.9,1798.8,0.2]
[1745670543178,0.11574129,1798.9,1798.7,0.2]
[1745670543359,0.11574129,1798.9,1798.6,0.2]
[1745670545950,0.11574129,1798.9,1798.8,0.2]
[1745670546275,0.11574129,1798.9,1798.6,0.2]
[1745670548571,0.11574129,1798.9,1798.4,0.2]
[1745670548934,0.8164,1798.7,1798.3,0.2]
[1745670549138,5.964,1798.6,1798.3,0.2]
[1745670549374,0.11574129,1798.5,1798.3,0.2]
[1745670550045,0.11574129,1798.5,1798.1,0.8029]
[1745670550046,0.11574129,1798.5,1798.4,0.2]
[1745670550778,5.964,1798.6,1798.3,0.2]
[1745670555405,3.55,1798.8,1798.3,0.2]
[1745670555603,0.403169,1800.4,1799.8,0.2]
[1745670556166,0.403169,1800.4,1799.8,5.7561729]
[1745670556799,0.403169,1800.4,1799.8,6.26586521]
[1745670557367,6.004,1800.2,1799.8,6.26586521]
[1745670557568,6.004,1800.2,1799.8,5.7561729]
[1745670559221,6.004,1800.2,1799.8,6.96597489]
[1745670559531,0.403169,1800.4,1799.8,6.96597489]
[1745670559840,6.003,1800.3,1799.8,7.47448137]
[1745670560141,0.403169,1800.4,1799.8,7.47448137]
[1745670560341,6.406169,1800.4,1799.8,6.26467938]
[1745670560547,0.403169,1800.4,1799.8,6.26467938]
[1745670560749,1e-08,1800.4,1800.3,6.53742978]
[1745670561057,0.05,1800.9,1800.8,5.75308751]
[1745670561632,0.05,1800.9,1800.5,5.55397966]
[1745670561633,0.05,1800.9,1800.5,5.55382068]
[1745670561941,6.001,1800.8,1800.7,5.55339209]
[1745670562154,0.05,1800.9,1800.8,5.55308751]
[1745670562334,6.051,1800.9,1800.8,5.55308751]
[1745670562529,6.051,1800.9,1800.7,5.55337285]
[1745670562712,6.051,1800.9,1800.8,5.55308751]
[1745670563235,0.05,1800.9,1800.8,6.37168751]
[1745670563614,0.05,1800.9,1800.8,0.8186]
[1745670565142,0.05,1800.9,1800.5,0.8186]
[1745670565311,0.05,1800.9,1800.5,6.37247414]
[1745670565640,5.46629134,1800.8,1800.1,6.37372267]
[1745670566008,0.05,1800.9,1800.8,6.37168751]
[1745670567642,0.05,1800.9,1800.8,0.8186]
[1745670568151,0.05,1800.9,1800.7,5.55323859]
[1745670568518,0.05,1800.9,1800.6,0.8186]
[1745670568725,0.05,1800.9,1800.7,5.55313795]
[1745670569243,0.05,1800.9,1800.7,5.5533491]
[1745670569942,0.05,1800.9,1800.7,11.10651559]
[1745670570118,0.05,1800.9,1800.7,5.55316649]
[1745670570519,0.05,1800.9,1800.7,5.55316135]
[1745670570836,0.10610134,1800.8,1800.7,5.55316135]
[1745670571149,0.05,1800.9,1800.8,5.55308751]
[1745670571336,0.17065545,1800.9,1800.8,5.55308751]
[1745670574576,0.17065545,1800.9,1800.6,0.8186]
[1745670574725,0.17065545,1800.9,1800.7,5.55333516]
[1745670574922,0.17065545,1800.9,1800.6,1.24322502]
[1745670575262,0.17065545,1800.9,1800.8,5.55308751]
[1745670576748,0.17065545,1800.9,1800.7,5.553225]
[1745670576949,6.268,1800.8,1800.5,6.13]
[1745670577132,6.268,1800.8,1800.4,5.55408083]
[1745670577133,0.12071405,1800.7,1800.4,5.55408083]
[1745670577477,0.12071405,1800.7,1800.3,0.7944]
[1745670577676,0.12071405,1800.7,1800.5,5.55387216]
[1745670578175,0.12071405,1800.7,1800.4,5.5541323]
[1745670578379,6.268,1800.8,1800.4,5.55408311]
[1745670578576,0.11909504,1800.7,1800.4,5.55408311]
[1745670578878,6.268,1800.8,1800.4,5.55408311]
[1745670579081,6.268,1800.8,1800.2,11.68476082]
[1745670579371,0.11909504,1800.7,1800.3,5.55444904]
[1745670579572,0.11909504,1800.7,1800.2,12.97257021]
[1745670579946,0.11909504,1800.7,1800.4,5.55430811]
[1745670580144,0.11909504,1800.7,1800.2,12.9725135]
[1745670580754,0.11909504,1800.7,1800.2,12.97254816]
[1745670581176,0.11909504,1800.7,1800.2,12.97251726]
[1745670582269,0.11909504,1800.7,1800.0,1.25187469]
[1745670582270,0.11909504,1800.7,1800.0,6.38267556]
[1745670582884,0.8065,1800.6,1800.0,6.38267556]
[1745670583096,3.27279134,1800.6,1799.8,5.55601182]
[1745670583272,3.11557818,1800.5,1799.8,5.55601182]
[1745670583785,3.11557818,1800.5,1799.8,6.2479431]
[1745670584089,2.46629134,1800.0,1799.4,0.7712]
[1745670584253,6.269,1799.9,1799.4,6.32844139]
[1745670584457,6.38340557,1799.9,1799.5,5.55697115]
[1745670584957,6.38340557,1799.9,1799.4,6.32849424]
[1745670585173,7.20530557,1799.9,1799.4,5.55727704]
[1745670585363,7.20530557,1799.9,1799.4,7.28175847]
[1745670585559,7.20530557,1799.9,1799.4,1.72448143]
[1745670585763,7.20530557,1799.9,1799.3,11.68746848]
[1745670586585,7.20530557,1799.9,1799.3,6.13]
[1745670586890,2.46629134,1799.8,1799.3,6.13]
[1745670587401,0.93630557,1799.7,1799.0,5.55840306]
[1745670587601,2.46629134,1799.6,1799.0,5.55840306]
[1745670587783,0.10924299,1799.5,1799.0,6.74724605]
[1745670587985,6.269,1799.4,1799.0,6.74724605]
[1745670588189,6.269,1799.4,1799.0,6.74727642]
[1745670588392,0.10924299,1799.3,1799.0,6.74733549]
[1745670588593,6.269,1799.4,1799.1,5.55810265]
[1745670588764,0.10924299,1799.3,1799.1,5.55810265]
[1745670588965,0.10924299,1799.3,1799.1,6.15332344]
[1745670589302,0.10924299,1799.2,1799.1,6.15332344]
[1745670589803,0.10924299,1799.2,1799.1,0.59522079]
[1745670590005,6.269,1799.4,1799.1,0.59522079]
[1745670590168,0.10924299,1799.3,1799.0,1.18884299]
[1745670590359,0.10924299,1799.3,1799.0,5.55864369]
[1745670590661,0.10924299,1799.2,1799.0,5.55850239]
[1745670590867,0.10924299,1799.2,1799.1,5.55833472]
[1745670591068,6.269,1799.4,1799.1,5.55833472]
[1745670591263,0.10924299,1799.2,1799.1,5.55833472]
[1745670591484,6.269,1799.4,1799.1,5.55833472]
[1745670591689,0.10924299,1799.2,1799.1,5.55833472]
[1745670591877,6.269,1799.4,1799.1,5.55833472]
[1745670592071,0.10924299,1799.2,1799.1,5.55833472]
[1745670592277,6.269,1799.4,1799.1,5.55833472]
[1745670592521,0.10924299,1799.2,1799.1,5.55833472]
[1745670592714,6.269,1799.4,1799.1,5.55833472]
[1745670592912,6.269,1799.4,1799.2,5.55777985]
[1745670594414,6.269,1799.4,1799.1,6.66987597]
[1745670594712,6.269,1799.4,1799.1,12.22797822]
[1745670595001,6.269,1799.4,1799.2,5.55800022]
[1745670595806,6.269,1799.4,1799.1,5.5581466]
[1745670596398,6.269,1799.4,1799.1,5.55812734]
[1745670598120,6.269,1799.4,1799.1,5.5583169]
[1745670598599,6.269,1799.4,1799.0,5.55861154]
[1745670598811,6.269,1799.4,1798.7,5.55948699]
[1745670598812,0.7846,1799.3,1798.8,5.55906205]
[1745670599004,0.7846,1799.3,1798.9,5.55881108]
[1745670599314,17.4646,1799.7,1798.8,0.6334262]
[1745670599477,6.044,1799.6,1799.1,6.33339618]
[1745670599678,6.044,1799.6,1799.2,5.55802578]
[1745670599873,6.044,1799.6,1799.2,6.74716566]
[1745670600109,6.044,1799.6,1799.2,5.55802578]
[1745670601392,6.044,1799.6,1799.3,5.55768808]
[1745670602037,0.7846,1800.3,1799.5,5.55709919]
[1745670602324,0.7846,1800.3,1799.4,3.7752]
[1745670602487,0.7846,1800.3,1799.9,5.55571414]
[1745670602678,0.7846,1800.3,1799.6,5.55667878]
[1745670602876,3.8069,1800.2,1799.5,5.9344726]
[1745670603283,3.8069,1800.2,1799.6,5.55658761]
[1745670603484,0.8069,1800.2,1799.5,0.37752]
[1745670603726,6.043,1800.1,1799.8,5.55604184]
[1745670604795,6.043,1800.1,1799.6,5.55664555]
[1745670604796,6.043,1800.1,1799.7,5.55630241]
[1745670604989,6.043,1800.1,1799.6,5.55663308]
[1745670605414,6.043,1800.1,1799.4,0.7752]
[1745670605615,6.043,1800.1,1799.7,5.55631193]
[1745670607127,6.8499,1800.2,1799.9,5.55569624]
[1745670607315,6.8499,1800.2,1799.8,5.5559714]
[1745670608330,6.8499,1800.2,1799.5,5.55695894]
[1745670608331,9.31619134,1800.2,1799.5,5.55695894]
[1745670608532,3.0,1800.1,1799.5,5.55695894]
[1745670609027,3.0,1800.1,1799.6,5.55674998]
[1745670609395,3.0,1800.1,1799.5,5.55699799]
[1745670609831,3.0,1800.1,1799.5,1.18894654]
[1745670610636,3.0,1800.1,1799.5,6.74602654]
[1745670610792,0.8083,1800.0,1799.4,5.55716787]
[1745670610988,3.27459134,1800.0,1799.3,11.11503486]
[1745670611208,0.8083,1799.9,1799.2,5.55783014]